Cogmind - Beta 14 @@@ ROGUE MODE // 2024.11.23 @ 01:43:58 Player: Tenderz Result: Destroyed by G-34 Mercenary with Small Laser Performance ------------- Evolutions (0) 0 Regions Visited (2) 400 Robots Destroyed (30) 150 Value Destroyed (579) 579 Prototype IDs (2) 40 Alien Tech Used (0) 0 Bonus (0) 0 TOTAL SCORE: 1169 Bonus ------- None Cogmind --------- Core Integrity 0/250 Matter 300/300 Energy 160/160 System Corruption 1% Temperature Cool (59) Movement Treading (240) Ox1 Location -10/Mines Parts ------- > --- POWER (1) -------- Light Nuclear Core > --- PROPULSION (2) --- Light Treads > --- UTILITY (2) ------ Improved Heat Sink Large Storage Unit > --- WEAPON (2) ------- Medium Laser Medium Laser > --- INVENTORY (15) --- Light Ion Engine Light Ion Engine Light Treads Aluminum Leg Aluminum Leg Wheel Wheel High-capacity Matter Pod (200) Sensor Array Seismic Detector Weapon Shielding Tractor Beam Medium Laser Medium Laser Mining Laser Peak State ------------ > --- POWER ------------ Light Nuclear Core > --- PROPULSION ------- Light Treads Light Treads > --- UTILITY ---------- Improved Heat Sink Large Storage Unit > --- WEAPON ----------- Small Laser Small Laser > --- INVENTORY -------- Ion Engine Light Ion Engine Light Ion Engine Light Treads Aluminum Leg Aluminum Leg Wheel Wheel Large Storage Unit High-capacity Matter Pod Seismic Detector Weapon Shielding Tractor Beam EM Pulse Gun Light Assault Rifle [Rating: 12] Favorites ----------- Power Ion Engine Engine Ion Engine Power Core Light Nuclear Core Propulsion Light Treads Treads Light Treads Leg Aluminum Leg Wheel Wheel Utility Large Storage Unit Device Seismic Detector Storage Large Storage Unit Protection Weapon Shielding Weapon Light Assault Rifle Energy Gun Medium Laser Ballistic Gun Light Assault Rifle Special Weapon Mining Laser Build | -11 -10 -10 ------- Run | Yrd Mat Min Slots Evolved . | . . . Power . | . . . Propulsion . | . . . Utility . | . . . Weapon . | . . . Parts Attached 26 | 10 14 2 Power 4 | 2 2 . Engine 2 | 2 . . Core 2 | . 2 . Reactor . | . . . Propulsion 7 | 4 3 . Treads 4 | 1 3 . Leg 2 | 2 . . Wheel 1 | 1 . . Hover . | . . . Flight . | . . . Utility 6 | 2 4 . Device 2 | 1 1 . Storage 3 | 1 2 . Processor . | . . . Hackware . | . . . Protection 1 | . 1 . Artifact . | . . . Weapon 9 | 2 5 2 Energy Gun 5 | . 4 1 Energy Cannon . | . . . Ballistic Gun 3 | 2 1 . Ballistic Cannon . | . . . Launcher . | . . . Special Weapon 1 | . . 1 Impact Weapon . | . . . Slashing Weapon . | . . . Piercing Weapon . | . . . Special Melee Weapon . | . . . Unidentified Prototypes . | . . . Parts Lost 2 | . 1 1 Power 1 | . 1 . Propulsion 1 | . . 1 Utility . | . . . Weapon . | . . . Highest Loss Streak 1 | . 1 1 To Critical Strikes . | . . . Average Slot Usage (%) 99 | . 99 100 Engine 8 | . 8 . Core 5 | . 4 14 Treads 19 | . 19 28 Leg 8 | . 8 . Device 10 | . 9 14 Storage 14 | . 14 14 Protection 3 | . 4 . Energy Gun 9 | . 8 25 Ballistic Gun 17 | . 19 . Peak Build Rating 12 | 7 12 12 Average Rating 8 | 5 8 11 On Entrance 6 | . 7 12 Naked Turns . | . . . Heaviest Build 30 | 13 30 30 Greatest Support 40 | 20 40 40 Greatest Overweight (x) 1 | 1 1 . Average Overweight (x) . | . . . Largest Inventory Capacity 15 | 8 15 15 Average Capacity 12 | 7 12 15 Most Carried 15 | 8 15 15 Average Carried 11 | 5 11 15 Final Capacity 15 | 8 15 15 Final Carried 15 | 8 15 15 Class Distribution -------------------- 90% | Mutant 9% | Scavenger-Mutant Dominant Class ---------------- Mutant | -10/Materials Mutant | -10/Mines Resources | -11 -10 -10 ----------- Run | Yrd Mat Min Matter Collected 854 | 323 497 34 Remotely . | . . . Salvage Created 1373 | 103 1186 84 Parts 73 | 3 58 12 Haulers Intercepted 2 | . 2 . Recyclers Shooed 3 | . 3 . Parts Field Recycled . | . . . Retrieved Matter . | . . . Parts Self-Destructed . | . . . Prevented . | . . . Kills | -11 -10 -10 ------- Run | Yrd Mat Min Combat Hostiles Destroyed 15 | . 14 1 Guns 15 | . 14 1 Classes Destroyed 7 | 2 4 1 Builder 2 | . . 2 Tunneler 2 | 1 . 1 Hauler 2 | . 2 . Recycler 7 | 1 6 . Watcher 2 | . 2 . Swarmer 3 | . 3 . Grunt 12 | . 11 1 Best Kill Streak 5 | 1 5 3 Combat Bots Only 4 | . 4 1 Max Kills in Single Turn 2 | 1 2 1 Gunslinging 1 | . 1 . Exploded . | . . . Melee . | . . . Uniques/NPCs Destroyed . | . . . Combat | -11 -10 -10 -------- Run | Yrd Mat Min Hostile Shots Fired 118 | . 90 28 Missed 25 | . 20 5 Damage Taken 1111 | . 844 267 Core 259 | . 181 78 Absorbed by Shields . | . . . Redirected to Shielding 32 | . 32 . Core Remaining (%) 100 | 100 . . Volleys Fired 121 | 17 84 20 Largest 2 | 2 2 2 Hottest 100 | 40 100 100 Shots Fired 222 | 26 168 28 Gun 218 | 26 168 24 Cannon . | . . . Launcher . | . . . Special 4 | . . 4 Kinetic 158 | 26 132 . Thermal 64 | . 36 28 Explosive . | . . . Electromagnetic . | . . . Robot Hit Streak 13 | 5 13 9 Robot Miss Streak 5 | 2 2 5 Penetration Max . | . . . Secondary Targets 1 | . 1 . Max Gunslinging Chain 1 | . 1 . Shots Hit Robots 158 | 18 125 15 Core Hits 64 | 5 51 8 Critical Kills . | . . . Critical Parts Destroyed 1 | . 1 . Critical Strikes 3 | . 1 2 Burn 2 | . . 2 Destroy 1 | . 1 . Melee Attacks . | . . . Impact . | . . . Slashing . | . . . Piercing . | . . . Sneak Attacks . | . . . Combat Hostiles . | . . . Follow-up Attacks . | . . . Damage Inflicted 1489 | 142 1090 257 Guns 1484 | 142 1090 252 Cannons . | . . . Explosions . | . . . Melee . | . . . Ramming 5 | . . 5 Kinetic 969 | 142 827 . Thermal 515 | . 263 252 Explosive . | . . . Electromagnetic . | . . . Impact . | . . . Slashing . | . . . Piercing . | . . . Highest Corruption 1 | . 1 1 Average Corruption 1 | . 1 1 Corruption Purged . | . . . Corruption Blocked . | . . . Overload Shots . | . . . Overflow Damage . | . . . Projectiles . | . . . Explosions . | . . . Melee . | . . . Knockbacks . | . . . Impact . | . . . Kinetic . | . . . Secondary . | . . . Self-Inflicted Damage . | . . . Shots . | . . . Rammed 1 | . . 1 Targets Rammed 2 | . . 2 Kicked . | . . . Crushed 1 | . . 1 Highest Temperature 183 | . 183 53 Average Temperature 33 | . 37 16 Received Heat Transfer 600 | . 456 144 Siege Activations . | . . . Robots Corrupted . | . . . Combat Hostiles . | . . . Parts Fried . | . . . Impact Corruptions . | . . . Robots Melted . | . . . Combat Hostiles . | . . . Parts Melted 1 | . 1 . Heat Transferred 1512 | . 624 888 Parts Sabotaged . | . . . Parts Stolen . | . . . Parts Stripped . | . . . Power Chain Reactions . | . . . Alert | -11 -10 -10 ------- Run | Yrd Mat Min Peak Influence 232 | 10 232 102 Initial 67 | . 6 67 Average 103 | 3 119 76 Maximum Alert Level 1 | . 1 . Low Security (%) 92 | 100 90 100 Level 1 7 | . 9 . Level 2 . | . . . Level 3 . | . . . Level 4 . | . . . Level 5 . | . . . High Security . | . . . Max Security . | . . . Squads Dispatched 4 | . 4 . Investigation 2 | . 2 . Extermination . | . . . Reinforcement 2 | . 2 . Assault . | . . . Garrison . | . . . Intercept . | . . . Searches Triggered . | . . . Construction Impeded . | . . . Haulers Reinforced . | . . . Active Scanning Responses . | . . . Cargo Convoy Interrupts . | . . . Stealth | -11 -10 -10 --------- Run | Yrd Mat Min Distress Signals 2 | . 2 . Communications Jammed . | . . . Distress Signals . | . . . Times Spotted 29 | . 22 7 Peak Tracking Total 6 | . 4 6 Tactical Retreats 2 | . 2 . Traps | -11 -10 -10 ------- Run | Yrd Mat Min Traps Triggered 2 | . 2 . Indirectly . | . . . Trap Hack Attempts . | . . . Triggered . | . . . Disarmed . | . . . Reprogrammed . | . . . Reused . | . . . Traps Extracted . | . . . Installed . | . . . Triggered . | . . . Machines | -11 -10 -10 ---------- Run | Yrd Mat Min Machines Disabled . | . . . Max in Single Turn . | . . . Machines Repaired . | . . . Machines Dismantled . | . . . Machines Sabotaged . | . . . Overloaded Fab Kills . | . . . Hacking | -11 -10 -10 --------- Run | Yrd Mat Min Machines Accessed 4 | . 4 . Terminals 4 | . 4 . Fabricators . | . . . Repair Stations . | . . . Recycling Units . | . . . Scanalyzers . | . . . Garrison Access . | . . . Total Hacks 15 | . 15 . Successful 7 | . 7 . Failed 8 | . 8 . Catastrophic . | . . . Database Lockouts . | . . . Manual 11 | . 11 . Terminals 15 | . 15 . Fabricators . | . . . Repair Stations . | . . . Recycling Units . | . . . Scanalyzers . | . . . Garrison Access . | . . . Terminal Hacks 3 | . 3 . Robot Analysis 1 | . 1 . Prototype ID Bank 1 | . 1 . Transport Status 1 | . 1 . Fabricator Hacks . | . . . Repair Station Hacks . | . . . Recycling Unit Hacks . | . . . Scanalyzer . | . . . Garrison Access Hacks . | . . . Unauthorized Hacks 4 | . 4 . Terminals 4 | . 4 . Track 1 | . 1 . Botnet 3 | . 3 . Fabricators . | . . . Repair Stations . | . . . Recycling Units . | . . . Scanalyzers . | . . . Garrison Access . | . . . Data Cores Recovered . | . . . Used . | . . . Hacking Detections 4 | . 4 . Full Trace Events 1 | . 1 . Feedback Events . | . . . Feedback Blocked . | . . . Robot Schematics Acquired . | . . . Robots Built . | . . . Authchips . | . . . Time . | . . . Total Robot Build Rating . | . . . Part Schematics Acquired . | . . . Parts Built . | . . . Authchips . | . . . Time . | . . . Total Part Build Rating . | . . . Parts Repaired . | . . . Time . | . . . Parts Recycled . | . . . Recycled Matter . | . . . Retrieved Matter . | . . . Retrieved Components . | . . . Parts Scanalyzed . | . . . Part Schematics Acquired . | . . . Parts Damaged . | . . . Bothacking | -11 -10 -10 ------------ Run | Yrd Mat Min Used RIF Installer . | . . . Robots Hacked . | . . . Non-combat . | . . . Combat . | . . . Robot Hacks Applied . | . . . Relay Couplers Released . | . . . Fabnet Peak Effective % . | . . . Robots Rewired . | . . . Allies Hacked . | . . . Hacks Repelled . | . . . Allies | -11 -10 -10 -------- Run | Yrd Mat Min Total Allies . | . . . Largest Group . | . . . Highest-Rated Group . | . . . Highest-Rated Ally . | . . . Total Orders . | . . . Ally Attacks . | . . . Total Damage . | . . . Kills . | . . . Allies Corrupted . | . . . Allies Melted . | . . . Intel | -11 -10 -10 ------- Run | Yrd Mat Min Robot Analysis Total 1 | . 1 . Derelict Logs Recovered . | . . . Drone Launches . | . . . Drone Recoveries . | . . . Exploration | -11 -10 -10 ------------- Run | Yrd Mat Min Turns Passed 1345 | 146 1099 100 Spaces Moved 630 | 74 533 23 Core 3 | 3 . . Treads 339 | 7 309 23 Legs 275 | 51 224 . Wheels 13 | 13 . . Hover . | . . . Flight . | . . . Fastest Speed 50 | 50 120 160 Average Speed 140 | 115 143 160 Slowest Speed 190 | 160 190 160 Overloaded Moves . | . . . Propulsion Burnouts . | . . . Robots Hopped . | . . . Cave-ins Triggered . | . . . Exploration Rate (%) 27 | 6 63 14 Regions Visited 2 Branch Regions 1 Pre-discovered Areas . | . . . Known Exits Taken . | . . . Unknown Exits Taken 2 | 1 1 . Scrap Searched . | . . . Spaces Dug . | . . . Terrain Destroyed . | . . . Melee . | . . . Projectile . | . . . AOE . | . . . Terrain Rammed . | . . . Walls Destroyed . | . . . Machines Disabled . | . . . Actions | -11 -10 -10 --------- Run | Yrd Mat Min Total 891 | 108 734 49 Wait 63 | 1 60 2 Move 628 | 73 532 23 Hop . | . . . Pick Up 30 | 7 23 . Fast Attach 10 | 7 3 . Attach . | . . . Detach . | . . . Swap 16 | 3 11 2 Drop 21 | . 21 . Fire 121 | 17 84 20 Melee . | . . . Ram . | . . . Kick . | . . . Crush 2 | . . 2 Escape Stasis . | . . . Rewire . | . . . Trap . | . . . Miscellaneous . | . . . Route ------- -11/Scrapyard -10/Materials (discovered 2 exits: [*Mat] / [*Min]) -10/Mines History --------- Turn | Location | Event 22 | -11/Scrapyard | Discovered new exit (range 16) 147 | -11/Scrapyard | Entered Materials 249 | -10/Materials | Discovered new exit (range 11) 318 | -10/Materials | Build established: Mutant 976 | -10/Materials | Core integrity fell below 50% 1087 | -10/Materials | Discovered new exit (range 13) 1246 | -10/Materials | Entered Mines 1289 | -10/Mines | Excavation squad dispatched 1289 | -10/Mines | A large section of the Mines collapsed 1321 | -10/Mines | Core integrity fell below 20% 1346 | -10/Mines | Destroyed by G-34 Mercenary with Small Laser Last Messages --------------- squad. 01310_ T-07 Excavator is excavating. 01312_ U-05 Engineer lays Concrete. 01315_ T-07 Excavator is excavating. 01320_ G-34 Mercenary destroyed. 01324_ T-07 Excavator is excavating. 01326_ T-07 Excavator destroyed. 01328_ T-07 Excavator is excavating. 01335_ Crushed U-05 Engineer. 01335_ U-05 Engineer destroyed. 01336_ Acquired 34 matter. 01336_ R-06 Scavenger collects Heat Sink. 01337_ Slammed into T-07 Excavator. 01338_ T-07 Excavator is excavating. 01340_ R-06 Scavenger collects Wheel. 01341_ G-47 Trooper suffers critical hit (Burn). 01342_ Lgt. Treads destroyed. 01343_ T-07 Excavator is excavating. 01343_ R-06 Scavenger collects Aluminum Leg. 01344_ G-34 Mercenary suffers critical hit (Burn). Map ----- +----------------------------------------------------+ | ?????????????????????????????????????????????????? | | ?????????????????????????????????????????????????? | | ?????????????????????????????????????????????????? | | ?????????????????????????????????????????????????? | | ?????????????????????????????????????????????????? | | ?????????????????????????????????????????????????? | | ?????????????????????????????????????????????????? | | ?????????????????????????????????????????????????? | | ?????????????????????????????????????????????????? | | ?????????????????????????????????????????????????? | | ?????????????????????????????????????????????????? | | ?????????????????????????????????????????????????? | | ?????????????????????????????????????????????????? | | ?????????????????????????????????????????????????? | | ?????????????????????????????????????????????????? | | ?????????????????????????????????????????????????? | | ?????????????????????????????????????????????????? | | ?????????????????????????????????????????????????? | | ?????????????????????????????????????????????????? | | ?????? ##????????????????????????##?????????????? | | ??????? ????????????????????? ##????????????? | | ???????? ??????????????????? #????????????? | | ????????? #######?????###### #????????????? | | ??????????? ##????# t ??????????????? | | ???????????? #????# g ??????????????????? | | ?????????????# # ######@r#?????????????????????? | | ????????????## # ![g !#?????????????????????? | | ????????????# ### !gg* #?????????????????????? | | ???????????## #" #######?????????????????????? | | ??????????## #at ######??????????????????????? | | ??????????# #;## ?????????????????? | | ??????????# ## ############???????????????????? | | ??????????## ??## #????????????????????????????? | | ???????????# ????# #######??????????????????????? | | ???????????#?????# #??????????????????????? | | ?????????????????## ##### #??????????????????????? | | ????????????????### #????????????????????????????? | | ???????????????## ##???????????????????????????? | | ???????????????# ##????##????????????????????? | | ??????????????## ## #????????????????????? | | ??????????????# #????????????????????? | | ??????????????# ##????????????????????? | | ?????????????## """ #?????????????????????? | | ?????????????# """ #?????????????????????? | | ????????????## """ #?????????????????????? | | ????????????# ## ##?????????????????????? | | ???????????# ####?####??????????????????????? | | ??????????# ##??????????????????????????????? | | ??????????# #???????????????????????????????? | | ??????????# ##???????????????????????????????? | +----------------------------------------------------+ Best States ------------- Heat Dissipation 39 Energy Generation 14 Energy Capacity 250 Matter Stores 300 Matter Capacity 300 Sight Range 16 Terrain Scan Density 10 Weapon Shielding 33 Evasion (%) 55 Recoil Reduction 2 Item Schematics ----------------- None Robot Schematics ------------------ None Fabricated ------------ Nothing Alien Tech Used ----------------- None Achievements -------------- None Challenges ------------ None Game ------ Seed GyrokineticMassStorm Manual? 0 Play Time 00:32:57 Cumulative 49.2 hours Start 2024.11.22 @ 23:09:41 End 2024.11.23 @ 01:43:58 Sessions 1 Manual Loads 0 Difficulty Rogue Special Mode None Game No. 36 Rogue 36 Adventurer 0 Explorer 0 Win Type - Total 0 Types 0/0/0/0/0/0/0/0/0 Lore% 18 Gallery% 42 Achievement% 35 Wizard Run 0 Options --------- Layout 2 ASCII 0 Keyboard 1 Movement Numpad Keybinds 0 Fullscreen 2 Font 28/SmallcapsLarge Map View 29x24 Zoom Use 83% Tactical HUD 1 Map Filters NONE Filters NONE Steam 1 RUN: ad93698a-9351-47c4-9d0d-75b21cfaddfc